[Event "*** Titled Tuesday Blitz"]
[Site "Chess.com"]
[Date "2021.02.16"]
[Round "2"]
[White "Galileo22"]
[Black "akanga001"]
[Result "1-0"]
[WhiteElo "2381"]
[BlackElo "1966"]
[TimeControl "180+1"]
[EndTime "10:20:10 PST"]
[Termination "Galileo22 won by resignation"]

1. d4 {[%clk 0:03:00.9]} 1... Nf6 {[%clk 0:02:57.5]} 2. Bg5 {[%clk 0:02:59.8]}
2... c5 {[%clk 0:02:55.5]} 3. dxc5 {[%clk 0:02:56.1]} 3... Qa5+ {[%clk
0:02:52.7]} 4. Nd2 {[%clk 0:02:44.4]} 4... Qxc5 {[%clk 0:02:51.4]} 5. Ngf3
{[%clk 0:02:43]} 5... Nc6 {[%clk 0:02:46]} 6. e3 {[%clk 0:02:33.8]} 6... d5
{[%clk 0:02:39.7]} 7. c4 {[%clk 0:02:26.4]} 7... Bf5 {[%clk 0:02:37.5]} 8. a3
{[%clk 0:02:02.1]} 8... e6 {[%clk 0:02:27.4]} 9. Rc1 {[%clk 0:01:52.3]} 9... Qa5
{[%clk 0:02:19.4]} 10. cxd5 {[%clk 0:01:38.5]} 10... exd5 {[%clk 0:02:04.5]} 11.
Bxf6 {[%clk 0:01:26.2]} 11... gxf6 {[%clk 0:02:03]} 12. Qb3 {[%clk 0:01:23.4]}
12... O-O-O {[%clk 0:01:26.2]} 13. Nd4 {[%clk 0:01:05.4]} 13... Bd7 {[%clk
0:01:25]} 14. Bb5 {[%clk 0:00:59.7]} 14... Qb6 {[%clk 0:01:24.2]} 15. Nxc6
{[%clk 0:00:39.7]} 15... bxc6 {[%clk 0:01:21.8]} 16. Bxc6 {[%clk 0:00:35.9]}
16... Bxc6 {[%clk 0:01:03.8]} 17. Qxb6 {[%clk 0:00:35]} 17... axb6 {[%clk
0:01:04.1]} 18. Rxc6+ {[%clk 0:00:35.5]} 18... Kb7 {[%clk 0:01:04.5]} 19. Rxf6
{[%clk 0:00:34.9]} 19... Rd7 {[%clk 0:01:01.6]} 20. Rf4 {[%clk 0:00:24.3]} 20...
Bg7 {[%clk 0:01:00.7]} 21. b3 {[%clk 0:00:23.4]} 21... Bc3 {[%clk 0:00:58.9]}
22. Ke2 {[%clk 0:00:21.8]} 22... d4 {[%clk 0:00:59]} 23. exd4 {[%clk 0:00:20.8]}
23... Bxd4 {[%clk 0:00:58.8]} 24. Nf3 {[%clk 0:00:19.7]} 24... Bc5 {[%clk
0:00:58]} 25. Re4 {[%clk 0:00:19]} 25... f5 {[%clk 0:00:55.4]} 26. Re5 {[%clk
0:00:18.4]} 26... f4 {[%clk 0:00:54.1]} 27. Re1 {[%clk 0:00:16.7]} 27... Rhd8
{[%clk 0:00:50.3]} 28. Kf1 {[%clk 0:00:16]} 28... Bxa3 {[%clk 0:00:45.6]} 29.
R5e4 {[%clk 0:00:15.4]} 29... Bd6 {[%clk 0:00:43]} 30. b4 {[%clk 0:00:15.4]}
30... Bc7 {[%clk 0:00:39.8]} 31. h3 {[%clk 0:00:12.7]} 31... Rd5 {[%clk
0:00:33.6]} 32. Re6 {[%clk 0:00:10.1]} 32... Rb5 {[%clk 0:00:31.8]} 33. R6e4
{[%clk 0:00:09.9]} 33... Rbd5 {[%clk 0:00:31.3]} 34. Kg1 {[%clk 0:00:09.6]}
34... Kc6 {[%clk 0:00:26.5]} 35. Rc1+ {[%clk 0:00:07.4]} 35... Kb7 {[%clk
0:00:26.6]} 36. Rce1 {[%clk 0:00:07.3]} 36... Ka6 {[%clk 0:00:25.9]} 37. Kh2
{[%clk 0:00:08.2]} 37... Kb5 {[%clk 0:00:25.2]} 38. Re7 {[%clk 0:00:08.3]} 38...
Bd6 {[%clk 0:00:23.1]} 39. Rxh7 {[%clk 0:00:08]} 39... Bxb4 {[%clk 0:00:22.8]}
40. Rh6 {[%clk 0:00:08.2]} 40... Bxe1 {[%clk 0:00:21.3]} 41. Nxe1 {[%clk
0:00:09.1]} 41... Rd2 {[%clk 0:00:19.2]} 42. Nf3 {[%clk 0:00:06.9]} 42... Rxf2
{[%clk 0:00:17.5]} 43. Rg6 {[%clk 0:00:07.8]} 43... Rd3 {[%clk 0:00:15.7]} 44.
Ne5 {[%clk 0:00:07.3]} 44... Rb3 {[%clk 0:00:13.8]} 45. h4 {[%clk 0:00:07.2]}
45... f3 {[%clk 0:00:13.7]} 46. Rg5 {[%clk 0:00:05]} 46... fxg2 {[%clk
0:00:13.2]} 47. Ng4+ {[%clk 0:00:04.9]} 47... Ka6 {[%clk 0:00:04.7]} 48. Nxf2
{[%clk 0:00:03.4]} 48... Rb2 {[%clk 0:00:05.6]} 49. Kxg2 {[%clk 0:00:03.7]}
49... Rb4 {[%clk 0:00:05.1]} 50. h5 {[%clk 0:00:04.6]} 50... b5 {[%clk
0:00:05.9]} 51. Rg3 {[%clk 0:00:04.8]} 51... Rh4 {[%clk 0:00:06.1]} 52. Rh3
{[%clk 0:00:05.7]} 52... Rg4+ {[%clk 0:00:06.2]} 53. Nxg4 {[%clk 0:00:04.9]}
53... b4 {[%clk 0:00:06.6]} 54. h6 {[%clk 0:00:05.8]} 54... Ka5 {[%clk
0:00:07.2]} 55. Rb3 {[%clk 0:00:06.7]} 55... Ka4 {[%clk 0:00:07.8]} 56. Rxb4+
{[%clk 0:00:07.6]} 56... Kxb4 {[%clk 0:00:08.2]} 57. h7 {[%clk 0:00:08.5]} 1-0

[Event "*** Titled Tuesday Blitz"]
[Site "Chess.com"]
[Date "2021.02.16"]
[Round "2"]
[White "Fandorine"]
[Black "StockholmMissile"]
[Result "1-0"]
[WhiteElo "2846"]
[BlackElo "2517"]
[TimeControl "180+1"]
[EndTime "10:20:11 PST"]
[Termination "Fandorine won by resignation"]

1. c4 {[%clk 0:03:00.9]} 1... e5 {[%clk 0:02:59.5]} 2. g3 {[%clk 0:02:59.3]}
2... Nf6 {[%clk 0:02:59.4]} 3. Bg2 {[%clk 0:02:59.3]} 3... d5 {[%clk 0:02:59.6]}
4. cxd5 {[%clk 0:03:00.2]} 4... Nxd5 {[%clk 0:03:00.2]} 5. Nf3 {[%clk
0:03:00.9]} 5... Nc6 {[%clk 0:03:00.3]} 6. O-O {[%clk 0:02:59.7]} 6... Nb6
{[%clk 0:03:00.3]} 7. b3 {[%clk 0:02:59.2]} 7... Be7 {[%clk 0:02:59.8]} 8. Bb2
{[%clk 0:02:57.6]} 8... f6 {[%clk 0:02:59.5]} 9. d4 {[%clk 0:02:57.4]} 9... exd4
{[%clk 0:02:57.2]} 10. Nxd4 {[%clk 0:02:57.4]} 10... Nxd4 {[%clk 0:02:56]} 11.
Bxd4 {[%clk 0:02:56.5]} 11... O-O {[%clk 0:02:52.3]} 12. Nc3 {[%clk 0:02:55.8]}
12... c6 {[%clk 0:02:50.3]} 13. Ne4 {[%clk 0:02:42.7]} 13... Be6 {[%clk
0:02:37.2]} 14. Nc5 {[%clk 0:02:37.9]} 14... Bxc5 {[%clk 0:02:37]} 15. Bxc5
{[%clk 0:02:38.3]} 15... Qxd1 {[%clk 0:02:36.6]} 16. Rfxd1 {[%clk 0:02:39.2]}
16... Rfd8 {[%clk 0:02:36.8]} 17. e4 {[%clk 0:02:34.9]} 17... Kf7 {[%clk
0:02:30.1]} 18. f3 {[%clk 0:02:29.3]} 18... Nd7 {[%clk 0:02:03.6]} 19. Be3
{[%clk 0:02:23.1]} 19... a6 {[%clk 0:01:47]} 20. h3 {[%clk 0:02:09.6]} 20... Ke8
{[%clk 0:01:42]} 21. g4 {[%clk 0:01:51.7]} 21... Nf8 {[%clk 0:01:21]} 22. Kf2
{[%clk 0:01:39.2]} 22... Rxd1 {[%clk 0:01:19.3]} 23. Rxd1 {[%clk 0:01:37.9]}
23... Rd8 {[%clk 0:01:19.9]} 24. Rxd8+ {[%clk 0:01:37.6]} 24... Kxd8 {[%clk
0:01:20.8]} 25. f4 {[%clk 0:01:38.3]} 25... Kd7 {[%clk 0:01:15.2]} 26. Ke2
{[%clk 0:01:27.5]} 26... Bg8 {[%clk 0:01:12.7]} 27. f5 {[%clk 0:01:26.6]} 27...
Ke8 {[%clk 0:01:05.6]} 28. h4 {[%clk 0:01:23.7]} 28... Nd7 {[%clk 0:01:05.3]}
29. g5 {[%clk 0:01:23.4]} 29... Ne5 {[%clk 0:01:03.6]} 30. Bd4 {[%clk
0:01:21.9]} 30... Kd7 {[%clk 0:01:01.4]} 31. Bc5 {[%clk 0:01:16.1]} 31... Ke8
{[%clk 0:00:56.2]} 32. Ke3 {[%clk 0:01:14.9]} 32... Bf7 {[%clk 0:00:53.5]} 33.
Bf1 {[%clk 0:01:12.7]} 33... h6 {[%clk 0:00:40.4]} 34. g6 {[%clk 0:01:05.9]}
34... Bg8 {[%clk 0:00:39.4]} 35. Be2 {[%clk 0:01:03.6]} 35... Nd7 {[%clk
0:00:35.7]} 36. Bd6 {[%clk 0:01:02.3]} 36... Ne5 {[%clk 0:00:32.6]} 37. Kd4
{[%clk 0:01:01]} 37... Nd7 {[%clk 0:00:31.7]} 38. h5 {[%clk 0:00:40.2]} 38...
Kd8 {[%clk 0:00:30.2]} 39. e5 {[%clk 0:00:29.6]} 39... fxe5+ {[%clk 0:00:25.8]}
40. Bxe5 {[%clk 0:00:30]} 40... Nxe5 {[%clk 0:00:16.3]} 41. Kxe5 {[%clk
0:00:30.9]} 41... Ke7 {[%clk 0:00:17.2]} 42. Bf3 {[%clk 0:00:28.2]} 42... a5
{[%clk 0:00:13.1]} 43. Be4 {[%clk 0:00:27.9]} 43... a4 {[%clk 0:00:11]} 44. bxa4
{[%clk 0:00:28.8]} 44... Bxa2 {[%clk 0:00:10.3]} 45. a5 {[%clk 0:00:28]} 45...
Bc4 {[%clk 0:00:09.3]} 46. Kd4 {[%clk 0:00:17.9]} 46... Bb3 {[%clk 0:00:09.1]}
47. Kc5 {[%clk 0:00:15.7]} 47... Kd7 {[%clk 0:00:09.6]} 48. Bd3 {[%clk
0:00:12.8]} 48... Bd5 {[%clk 0:00:04.4]} 49. Be2 {[%clk 0:00:09]} 49... Bg8
{[%clk 0:00:02.7]} 50. Bg4 {[%clk 0:00:08.3]} 50... Kc7 {[%clk 0:00:02.1]} 51.
f6 {[%clk 0:00:08.1]} 51... gxf6 {[%clk 0:00:02.2]} 52. Bf5 {[%clk 0:00:08.7]}
52... Kd8 {[%clk 0:00:01.7]} 53. Kb6 {[%clk 0:00:08.3]} 53... Ke7 {[%clk
0:00:02.2]} 54. Kxb7 {[%clk 0:00:08.4]} 54... Kd6 {[%clk 0:00:02.8]} 55. a6
{[%clk 0:00:07.8]} 55... c5 {[%clk 0:00:03.3]} 56. a7 {[%clk 0:00:08.2]} 56...
Bd5+ {[%clk 0:00:03.4]} 57. Kb8 {[%clk 0:00:08.1]} 57... c4 {[%clk 0:00:03.2]}
58. g7 {[%clk 0:00:08.6]} 58... c3 {[%clk 0:00:03.1]} 59. a8=Q {[%clk
0:00:08.7]} 1-0

[Event "*** Titled Tuesday Blitz"]
[Site "Chess.com"]
[Date "2021.02.16"]
[Round "2"]
[White "PaulfromSPb"]
[Black "Beca95"]
[Result "1-0"]
[WhiteElo "2591"]
[BlackElo "2904"]
[TimeControl "180+1"]
[EndTime "10:20:12 PST"]
[Termination "PaulfromSPb won on time"]

1. e4 {[%clk 0:03:00.9]} 1... c5 {[%clk 0:02:59.2]} 2. Ne2 {[%clk 0:03:00]} 2...
d6 {[%clk 0:02:59.8]} 3. g3 {[%clk 0:03:00]} 3... d5 {[%clk 0:02:57.8]} 4. Bg2
{[%clk 0:02:57.3]} 4... dxe4 {[%clk 0:02:58.1]} 5. Bxe4 {[%clk 0:02:58.2]} 5...
Nf6 {[%clk 0:02:57.5]} 6. Bg2 {[%clk 0:02:58]} 6... Nc6 {[%clk 0:02:54.1]} 7.
Nbc3 {[%clk 0:02:56.3]} 7... e6 {[%clk 0:02:53.7]} 8. d3 {[%clk 0:02:56.4]} 8...
Be7 {[%clk 0:02:53.6]} 9. O-O {[%clk 0:02:56]} 9... O-O {[%clk 0:02:53.8]} 10.
h3 {[%clk 0:02:55.3]} 10... Nd4 {[%clk 0:02:51.4]} 11. Nf4 {[%clk 0:02:51.5]}
11... a6 {[%clk 0:02:50.3]} 12. Be3 {[%clk 0:02:50.3]} 12... Rb8 {[%clk
0:02:49.4]} 13. Ne4 {[%clk 0:02:49.4]} 13... b6 {[%clk 0:02:29.5]} 14. g4 {[%clk
0:02:43.5]} 14... Bb7 {[%clk 0:02:23.2]} 15. c3 {[%clk 0:02:41.4]} 15... Nc6
{[%clk 0:02:15.7]} 16. Nxf6+ {[%clk 0:02:39.5]} 16... Bxf6 {[%clk 0:02:16.6]}
17. Nh5 {[%clk 0:02:39.7]} 17... Be7 {[%clk 0:01:58.3]} 18. Bf4 {[%clk 0:02:39]}
18... Rc8 {[%clk 0:01:57]} 19. Qe2 {[%clk 0:02:38.4]} 19... g6 {[%clk 0:01:55]}
20. Ng3 {[%clk 0:02:37.1]} 20... Bg5 {[%clk 0:01:29.7]} 21. Bxg5 {[%clk
0:02:33.5]} 21... Qxg5 {[%clk 0:01:30.6]} 22. Ne4 {[%clk 0:02:34.1]} 22... Qf4
{[%clk 0:01:30.9]} 23. Qf3 {[%clk 0:02:31.5]} 23... Qxf3 {[%clk 0:01:28.2]} 24.
Bxf3 {[%clk 0:02:32.4]} 24... Rc7 {[%clk 0:01:23.3]} 25. Rad1 {[%clk 0:02:22.5]}
25... Kg7 {[%clk 0:01:23.3]} 26. Nd6 {[%clk 0:02:21.8]} 26... Ba8 {[%clk
0:01:22.9]} 27. Nc4 {[%clk 0:02:19.8]} 27... b5 {[%clk 0:01:22.6]} 28. Ne3
{[%clk 0:02:19.5]} 28... Rd8 {[%clk 0:01:21.1]} 29. Rd2 {[%clk 0:02:16.2]} 29...
g5 {[%clk 0:01:17.6]} 30. Rfd1 {[%clk 0:02:15.2]} 30... Ne5 {[%clk 0:01:16.3]}
31. Bxa8 {[%clk 0:02:13.9]} 31... Rxa8 {[%clk 0:01:17.2]} 32. Kg2 {[%clk
0:02:14.5]} 32... Rd8 {[%clk 0:01:16.9]} 33. d4 {[%clk 0:02:14.4]} 33... Rcd7
{[%clk 0:01:06.7]} 34. d5 {[%clk 0:02:01.3]} 34... Ng6 {[%clk 0:01:06.9]} 35.
Kg3 {[%clk 0:01:43.5]} 35... Nf4 {[%clk 0:01:03.1]} 36. dxe6 {[%clk 0:01:36.6]}
36... Rxd2 {[%clk 0:00:40.9]} 37. Rxd2 {[%clk 0:01:36.1]} 37... Nxe6 {[%clk
0:00:41]} 38. Rxd8 {[%clk 0:01:32]} 38... Nxd8 {[%clk 0:00:41.9]} 39. Nd5 {[%clk
0:01:29.1]} 39... Ne6 {[%clk 0:00:34.4]} 40. Kf3 {[%clk 0:01:28.5]} 40... c4
{[%clk 0:00:34.2]} 41. b4 {[%clk 0:01:25.4]} 41... cxb3 {[%clk 0:00:33.5]} 42.
axb3 {[%clk 0:01:25.2]} 42... a5 {[%clk 0:00:34.1]} 43. Ke3 {[%clk 0:01:21.2]}
43... a4 {[%clk 0:00:34.3]} 44. bxa4 {[%clk 0:01:18.4]} 44... bxa4 {[%clk
0:00:35.2]} 45. Kd3 {[%clk 0:01:14.6]} 45... a3 {[%clk 0:00:27.6]} 46. Kc2
{[%clk 0:01:11.9]} 46... Nc5 {[%clk 0:00:26.2]} 47. f3 {[%clk 0:01:08.5]} 47...
f6 {[%clk 0:00:18.3]} 48. Ne3 {[%clk 0:01:07.3]} 48... Kf7 {[%clk 0:00:17.8]}
49. Nc4 {[%clk 0:01:07.4]} 49... a2 {[%clk 0:00:18.2]} 50. Kb2 {[%clk
0:01:08.2]} 50... Na4+ {[%clk 0:00:14.1]} 51. Kxa2 {[%clk 0:01:06]} 51... Nxc3+
{[%clk 0:00:14.4]} 52. Kb3 {[%clk 0:01:00.1]} 52... Ne2 {[%clk 0:00:15.3]} 53.
Kc2 {[%clk 0:00:50.1]} 53... Ng1 {[%clk 0:00:14.9]} 54. Nd2 {[%clk 0:00:49.7]}
54... Nxh3 {[%clk 0:00:14.4]} 55. Kd3 {[%clk 0:00:50.6]} 55... Nf4+ {[%clk
0:00:11.9]} 56. Ke4 {[%clk 0:00:50.6]} 56... Ng6 {[%clk 0:00:08.7]} 57. Nc4
{[%clk 0:00:49.4]} 57... Ke6 {[%clk 0:00:09.1]} 58. Ne3 {[%clk 0:00:47]} 58...
Ne7 {[%clk 0:00:09.3]} 59. Nc2 {[%clk 0:00:45.9]} 59... f5+ {[%clk 0:00:09.5]}
60. Ke3 {[%clk 0:00:44.6]} 60... Ke5 {[%clk 0:00:08.4]} 61. Ne1 {[%clk 0:00:43]}
61... Nd5+ {[%clk 0:00:08.1]} 62. Kf2 {[%clk 0:00:43.4]} 62... fxg4 {[%clk
0:00:06.3]} 63. Nd3+ {[%clk 0:00:34.9]} 63... Kd4 {[%clk 0:00:06.5]} 64. Ne1
{[%clk 0:00:35.5]} 64... Nf6 {[%clk 0:00:06.6]} 65. Kg3 {[%clk 0:00:33.9]} 65...
Ke3 {[%clk 0:00:02]} 66. fxg4 {[%clk 0:00:32.9]} 66... Ne4+ {[%clk 0:00:01.8]}
67. Kh3 {[%clk 0:00:32.8]} 1-0

[Event "*** Titled Tuesday Blitz"]
[Site "Chess.com"]
[Date "2021.02.16"]
[Round "2"]
[White "ENajer77"]
[Black "dpopadic"]
[Result "1-0"]
[WhiteElo "2615"]
[BlackElo "2340"]
[TimeControl "180+1"]
[EndTime "10:20:12 PST"]
[Termination "ENajer77 won by resignation"]

1. d4 {[%clk 0:01:33.9]} 1... Nf6 {[%clk 0:02:58.5]} 2. Bg5 {[%clk 0:01:29.2]}
2... d5 {[%clk 0:02:57.7]} 3. e3 {[%clk 0:01:22.3]} 3... c5 {[%clk 0:02:56.2]}
4. c3 {[%clk 0:01:15.3]} 4... Nc6 {[%clk 0:02:54.5]} 5. Nd2 {[%clk 0:01:14]}
5... e6 {[%clk 0:02:46.2]} 6. f4 {[%clk 0:01:11.8]} 6... cxd4 {[%clk 0:02:44.6]}
7. exd4 {[%clk 0:01:10.5]} 7... Be7 {[%clk 0:02:44.1]} 8. Bd3 {[%clk 0:01:09.2]}
8... O-O {[%clk 0:02:43.7]} 9. Ngf3 {[%clk 0:01:06.9]} 9... a6 {[%clk
0:02:42.8]} 10. Qc2 {[%clk 0:01:05]} 10... g6 {[%clk 0:02:36.9]} 11. O-O-O
{[%clk 0:00:49.9]} 11... b5 {[%clk 0:02:35.3]} 12. h4 {[%clk 0:00:49.5]} 12...
Qe8 {[%clk 0:02:11.1]} 13. h5 {[%clk 0:00:47.9]} 13... Bd7 {[%clk 0:02:08]} 14.
Ne5 {[%clk 0:00:43.5]} 14... Nxe5 {[%clk 0:01:58.5]} 15. fxe5 {[%clk 0:00:36.7]}
15... Ne4 {[%clk 0:01:56.6]} 16. Bxe7 {[%clk 0:00:25.4]} 16... Qxe7 {[%clk
0:01:52.2]} 17. Bxe4 {[%clk 0:00:22]} 17... dxe4 {[%clk 0:01:51.9]} 18. Nxe4
{[%clk 0:00:22.1]} 18... f5 {[%clk 0:01:41.3]} 19. exf6 {[%clk 0:00:18.1]} 19...
Rxf6 {[%clk 0:01:41.1]} 20. Nxf6+ {[%clk 0:00:16.7]} 20... Qxf6 {[%clk
0:01:41.3]} 21. hxg6 {[%clk 0:00:17.2]} 21... hxg6 {[%clk 0:01:40.8]} 22. Rdf1
{[%clk 0:00:16.2]} 22... Qg5+ {[%clk 0:01:39.4]} 23. Qd2 {[%clk 0:00:16.3]}
23... Qxd2+ {[%clk 0:01:34.1]} 24. Kxd2 {[%clk 0:00:17.2]} 24... Kg7 {[%clk
0:01:31.7]} 25. Rf4 {[%clk 0:00:15.5]} 25... Bc6 {[%clk 0:01:30]} 26. Rhf1
{[%clk 0:00:13.5]} 26... Ra7 {[%clk 0:01:30.1]} 27. R1f2 {[%clk 0:00:13.3]}
27... a5 {[%clk 0:01:27.8]} 28. g3 {[%clk 0:00:07.5]} 28... Bd5 {[%clk
0:01:27.3]} 29. a3 {[%clk 0:00:05.5]} 29... Rb7 {[%clk 0:01:26.4]} 30. Rh2
{[%clk 0:00:05.3]} 30... b4 {[%clk 0:01:19]} 31. axb4 {[%clk 0:00:05.4]} 31...
axb4 {[%clk 0:01:18.9]} 32. Kd3 {[%clk 0:00:06]} 32... bxc3 {[%clk 0:01:18.4]}
33. bxc3 {[%clk 0:00:06.9]} 33... Rc7 {[%clk 0:01:13.4]} 34. Rff2 {[%clk
0:00:06.5]} 34... Bc4+ {[%clk 0:01:12.2]} 35. Ke3 {[%clk 0:00:06.8]} 35... Bd5
{[%clk 0:01:08.6]} 36. Rc2 {[%clk 0:00:07.2]} 36... Ra7 {[%clk 0:01:08.1]} 37.
c4 {[%clk 0:00:05.9]} 37... Ra3+ {[%clk 0:01:07.1]} 38. Kf4 {[%clk 0:00:06.3]}
38... Rf3+ {[%clk 0:00:53.8]} 39. Ke5 {[%clk 0:00:06.4]} 39... Ba8 {[%clk
0:00:51.7]} 40. Kxe6 {[%clk 0:00:06]} 40... Rxg3 {[%clk 0:00:51.5]} 41. d5
{[%clk 0:00:06.4]} 41... Re3+ {[%clk 0:00:49.2]} 42. Kd6 {[%clk 0:00:06.8]}
42... Rd3 {[%clk 0:00:47.5]} 43. Ra2 {[%clk 0:00:06.5]} 43... Bb7 {[%clk
0:00:46.5]} 44. Ra7 {[%clk 0:00:07]} 44... Rb3 {[%clk 0:00:46]} 45. Re2 {[%clk
0:00:05.7]} 45... Kf6 {[%clk 0:00:45.7]} 46. Re6+ {[%clk 0:00:05.3]} 46... Kf5
{[%clk 0:00:45.5]} 47. Re8 {[%clk 0:00:05.3]} 47... Kf4 {[%clk 0:00:44.6]} 48.
Rf8+ {[%clk 0:00:06.2]} 48... Kg4 {[%clk 0:00:43.7]} 49. Rb8 {[%clk 0:00:06.2]}
49... Rb4 {[%clk 0:00:42.6]} 50. Rbxb7 {[%clk 0:00:05.9]} 50... Rxc4 {[%clk
0:00:42.9]} 51. Rg7 {[%clk 0:00:06.1]} 51... g5 {[%clk 0:00:42.9]} 52. Rac7
{[%clk 0:00:07]} 52... Rd4 {[%clk 0:00:42.1]} 53. Rge7 {[%clk 0:00:06.7]} 53...
Kf3 {[%clk 0:00:41.5]} 54. Re5 {[%clk 0:00:07.6]} 54... g4 {[%clk 0:00:41.1]}
55. Rf7+ {[%clk 0:00:08]} 55... Kg2 {[%clk 0:00:40.1]} 56. Ke6 {[%clk 0:00:08]}
56... g3 {[%clk 0:00:40]} 57. d6 {[%clk 0:00:08.9]} 57... Kh1 {[%clk 0:00:39.7]}
58. Rh7+ {[%clk 0:00:08.7]} 58... Kg1 {[%clk 0:00:37.6]} 59. d7 {[%clk
0:00:09.6]} 59... g2 {[%clk 0:00:37.7]} 60. Rg7 {[%clk 0:00:09.1]} 60... Kf1
{[%clk 0:00:33.7]} 61. Rf5+ {[%clk 0:00:08.9]} 61... Kg1 {[%clk 0:00:33.8]} 62.
Rd5 {[%clk 0:00:08.8]} 62... Re4+ {[%clk 0:00:26.6]} 63. Kf5 {[%clk 0:00:08.1]}
63... Re2 {[%clk 0:00:24.6]} 64. d8=Q {[%clk 0:00:08.2]} 64... Kf1 {[%clk
0:00:24.7]} 65. Rd1+ {[%clk 0:00:06.8]} 65... Kf2 {[%clk 0:00:24]} 66. Qd4+
{[%clk 0:00:06.9]} 66... Kf3 {[%clk 0:00:24.1]} 67. Rd3+ {[%clk 0:00:07]} 1-0

[Event "*** Titled Tuesday Blitz"]
[Site "Chess.com"]
[Date "2021.02.16"]
[Round "2"]
[White "rozabaku"]
[Black "Azde"]
[Result "0-1"]
[WhiteElo "2210"]
[BlackElo "2440"]
[TimeControl "180+1"]
[EndTime "10:20:13 PST"]
[Termination "Azde won by checkmate"]

1. d4 {[%clk 0:03:00.9]} 1... Nf6 {[%clk 0:02:59.8]} 2. c4 {[%clk 0:03:01.8]}
2... e6 {[%clk 0:02:58.2]} 3. Nc3 {[%clk 0:03:02.7]} 3... Bb4 {[%clk 0:02:58]}
4. Qc2 {[%clk 0:03:02.4]} 4... O-O {[%clk 0:02:57.3]} 5. Nf3 {[%clk 0:03:02.2]}
5... d5 {[%clk 0:02:57.5]} 6. e3 {[%clk 0:03:01.4]} 6... Nbd7 {[%clk 0:02:57.5]}
7. a3 {[%clk 0:02:58.8]} 7... Be7 {[%clk 0:02:56.5]} 8. b4 {[%clk 0:02:57.1]}
8... a5 {[%clk 0:02:54.2]} 9. b5 {[%clk 0:02:50.3]} 9... c6 {[%clk 0:02:54.3]}
10. a4 {[%clk 0:02:48.5]} 10... Re8 {[%clk 0:02:54]} 11. Be2 {[%clk 0:02:41.3]}
11... dxc4 {[%clk 0:02:50.7]} 12. Bxc4 {[%clk 0:02:40.6]} 12... c5 {[%clk
0:02:51.3]} 13. O-O {[%clk 0:02:35.3]} 13... cxd4 {[%clk 0:02:41.6]} 14. Nxd4
{[%clk 0:02:32.8]} 14... Ne5 {[%clk 0:02:30.3]} 15. Be2 {[%clk 0:02:15.1]} 15...
Bb4 {[%clk 0:02:28.6]} 16. Bb2 {[%clk 0:02:08.9]} 16... Bd7 {[%clk 0:02:15.6]}
17. Rac1 {[%clk 0:01:58]} 17... Rc8 {[%clk 0:02:14.3]} 18. Qb3 {[%clk
0:01:57.3]} 18... Qe7 {[%clk 0:02:12.5]} 19. Na2 {[%clk 0:01:47.7]} 19... Bd6
{[%clk 0:02:09]} 20. h3 {[%clk 0:01:31.3]} 20... Ne4 {[%clk 0:01:59.2]} 21. Rfd1
{[%clk 0:01:25]} 21... Rxc1 {[%clk 0:01:36.2]} 22. Rxc1 {[%clk 0:01:11.3]} 22...
Nc5 {[%clk 0:01:09.5]} 23. Qd1 {[%clk 0:00:58.5]} 23... b6 {[%clk 0:01:09.2]}
24. Nf3 {[%clk 0:00:40.2]} 24... Ng6 {[%clk 0:01:04.8]} 25. Qd4 {[%clk
0:00:29.5]} 25... e5 {[%clk 0:01:03]} 26. Qd1 {[%clk 0:00:20.6]} 26... Be6
{[%clk 0:01:01.4]} 27. Nc3 {[%clk 0:00:19.7]} 27... Bb3 {[%clk 0:00:57.3]} 28.
Qd2 {[%clk 0:00:20]} 28... Rd8 {[%clk 0:00:36]} 29. Qe1 {[%clk 0:00:17.5]} 29...
e4 {[%clk 0:00:35.2]} 30. Nd4 {[%clk 0:00:17.1]} 30... Qe5 {[%clk 0:00:31.5]}
31. g3 {[%clk 0:00:16.8]} 31... Qg5 {[%clk 0:00:26.7]} 32. Kh2 {[%clk
0:00:16.6]} 32... h5 {[%clk 0:00:26.4]} 33. f4 {[%clk 0:00:13]} 33... exf3
{[%clk 0:00:25.8]} 34. Nxf3 {[%clk 0:00:13.3]} 34... Qxe3 {[%clk 0:00:24]} 35.
Nd1 {[%clk 0:00:13.2]} 35... Bxd1 {[%clk 0:00:22.8]} 36. Rxd1 {[%clk 0:00:12.7]}
36... h4 {[%clk 0:00:21.7]} 37. Kg2 {[%clk 0:00:11.6]} 37... hxg3 {[%clk
0:00:20.3]} 38. Qf1 {[%clk 0:00:11.1]} 38... Nf4+ {[%clk 0:00:18.1]} 39. Kxg3
{[%clk 0:00:10.4]} 39... Nxe2+ {[%clk 0:00:17.1]} 40. Kg2 {[%clk 0:00:11.3]}
40... Nf4+ {[%clk 0:00:17.2]} 41. Kh1 {[%clk 0:00:10.2]} 41... Ncd3 {[%clk
0:00:16.6]} 42. Bd4 {[%clk 0:00:10]} 42... Qe4 {[%clk 0:00:15.3]} 43. Qg2 {[%clk
0:00:09.6]} 43... g6 {[%clk 0:00:14.5]} 44. Qg4 {[%clk 0:00:09.1]} 44... Qxd4
{[%clk 0:00:11.9]} 45. Nxd4 {[%clk 0:00:08.9]} 45... Nf2+ {[%clk 0:00:12]} 46.
Kg1 {[%clk 0:00:07.1]} 46... Nxg4 {[%clk 0:00:12.5]} 47. hxg4 {[%clk 0:00:08]}
47... Bc5 {[%clk 0:00:12.3]} 48. Kf2 {[%clk 0:00:07.4]} 48... Bxd4+ {[%clk
0:00:12.2]} 49. Kf3 {[%clk 0:00:07.9]} 49... Ne6 {[%clk 0:00:12.5]} 50. Ke4
{[%clk 0:00:08.2]} 50... Kg7 {[%clk 0:00:11.4]} 51. Rc1 {[%clk 0:00:08.6]} 51...
Rd6 {[%clk 0:00:10.2]} 52. Rc6 {[%clk 0:00:09.5]} 52... Rxc6 {[%clk 0:00:09.9]}
53. bxc6 {[%clk 0:00:10.4]} 53... Kf6 {[%clk 0:00:09.5]} 54. c7 {[%clk
0:00:10.1]} 54... Nxc7 {[%clk 0:00:09.4]} 55. Kxd4 {[%clk 0:00:11]} 55... Ke6
{[%clk 0:00:09.7]} 56. Kc4 {[%clk 0:00:11.1]} 56... f5 {[%clk 0:00:10]} 57.
gxf5+ {[%clk 0:00:10.8]} 57... gxf5 {[%clk 0:00:10.9]} 58. Kd4 {[%clk
0:00:11.6]} 58... Kf6 {[%clk 0:00:10.5]} 59. Ke3 {[%clk 0:00:08.1]} 59... Ke5
{[%clk 0:00:11.2]} 60. Kd3 {[%clk 0:00:08.6]} 60... f4 {[%clk 0:00:12.1]} 61.
Ke2 {[%clk 0:00:08.6]} 61... Ke4 {[%clk 0:00:12.6]} 62. Kf2 {[%clk 0:00:09.5]}
62... f3 {[%clk 0:00:13.3]} 63. Kf1 {[%clk 0:00:09.5]} 63... b5 {[%clk
0:00:13.8]} 64. Ke1 {[%clk 0:00:10.4]} 64... bxa4 {[%clk 0:00:13.7]} 65. Kd2
{[%clk 0:00:10.1]} 65... a3 {[%clk 0:00:14.2]} 66. Kc3 {[%clk 0:00:11]} 66... f2
{[%clk 0:00:14.3]} 67. Kc4 {[%clk 0:00:11.9]} 67... f1=Q+ {[%clk 0:00:15]} 68.
Kc5 {[%clk 0:00:12.8]} 68... Qc1+ {[%clk 0:00:14.5]} 69. Kd6 {[%clk 0:00:13.7]}
69... Nd5 {[%clk 0:00:14.5]} 70. Kd7 {[%clk 0:00:14.6]} 70... Qc7+ {[%clk
0:00:13.9]} 71. Ke8 {[%clk 0:00:14.7]} 71... Qe7# {[%clk 0:00:13.9]} 0-1